[Event "SixDays Budapest IM-B 09-2024"]
[Site "Budapest"]
[Date "2024.09.28"]
[Round "7.3"]
[White "Rodgers, Jack"]
[Black "Li, Xueyi"]
[Result "1-0"]
[ECO "D43"]
[WhiteElo "2110"]
[BlackElo "2187"]
[Annotator "ChessBase"]
[PlyCount "225"]
[EventDate "2024.09.24"]
[EventType "tourn"]
[EventCountry "HUN"]
[SourceTitle "playchess.com"]
[Source "ChessBase"]
[SourceQuality "1"]
[TimeControl "5400+30"]

1. d4 d5 2. c4 {[%emt 0:01:15]} c6 {[%emt 0:00:41]} 3. Nc3 {[%emt 0:00:25]} Nf6 {[%emt 0:00:28]} 4. Nf3 {[%emt 0:00:16]} e6 {[%emt 0:02:08]} 5. Bg5 {[%emt 0:00:35]} h6 {[%emt 0:00:11]} 6. Bxf6 {[%emt 0:01:46]} Qxf6 {[%emt 0:00:16]} 7. e3 {[%emt 0:00:42]} Nd7 {[%emt 0:00:38]} 8. Rc1 {[%emt 0:02:34]} g6 {[%emt 0:00:51]} 9. Be2 {[%emt 0:03:09]} Bg7 {[%emt 0:00:18]} 10. O-O {[%emt 0:02:33]} O-O {[%emt 0:00:09]} 11. cxd5 {[%emt 0:02:48]} exd5 {[%emt 0:00:31]} 12. b4 {[%emt 0:00:27]} a6 {[%emt 0:16:15]} 13. a4 {[%emt 0:04:47]} b5 {[%emt 0:00:36]} 14. a5 {[%emt 0:02:50]} Qe7 {[%emt 0:00:08]} 15. Na2 {[%emt 0:02:54]} Bb7 {[%emt 0:00:30]} 16. Re1 {[%emt 0:06:12]} Nf6 {[%emt 0:03:00]} 17. Ne5 {[%emt 0:02:36]} Ne4 {[%emt 0:01:00]} 18. Nd3 {[%emt 0:01:10]} Nd6 {[%emt 0:00:19]} 19. Nc5 {[%emt 0:03:11]} Bc8 {[%emt 0:00:37]} 20. Nc3 {[%emt 0:08:10]} h5 {[%emt 0:00:58]} 21. Bf3 {[%emt 0:03:27]} Bf5 {[%emt 0:10:08]} 22. Ne2 {[%emt 0:06:11]} h4 {[%emt 0:03:39]} 23. Nf4 {[%emt 0:02:20]} Rfe8 {[%emt 0:05:04]} 24. Bg4 {[%emt 0:02:02]} Bh6 {[%emt 0:10:38]} 25. Nfd3 {[%emt 0:07:27]} Bg7 {[%emt 0:03:02]} 26. Bxf5 {[%emt 0:04:23]} Nxf5 {[%emt 0:00:09]} 27. Qg4 {[%emt 0:00:48]} Qd6 {[%emt 0:05:15]} 28. g3 {[%emt 0:00:47]} Qe7 {[%emt 0:02:28]} 29. Kg2 {[%emt 0:01:32]} Qd8 {[%emt 0:03:11]} 30. Kg1 {[%emt 0:03:40]} Qc8 {[%emt 0:01:38]} 31. Qf3 {[%emt 0:01:30]} Ra7 {[%emt 0:01:16]} 32. Nf4 {[%emt 0:02:15]} Nd6 {[%emt 0:01:27]} 33. gxh4 {[%emt 0:02:18]} Nc4 {[%emt 0:01:34]} 34. Kh1 {[%emt 0:02:09]} Qf5 {[%emt 0:04:20]} 35. Rg1 {[%emt 0:01:38]} Bh6 {[%emt 0:02:44]} 36. Qh5 {[%emt 0:01:59]} Qxh5 {[%emt 0:03:02]} 37. Nxh5 {[%emt 0:00:08]} Kh8 {[%emt 0:02:49]} 38. Nf6 {[%emt 0:00:27]} Rd8 {[%emt 0:00:30]} 39. Ng4 {[%emt 0:02:01]} Bf8 {[%emt 0:00:08]} 40. Nd3 {[%emt 0:02:37]} Bd6 {[%emt 0:05:59]} 41. h5 {[%emt 0:00:53]} g5 {[%emt 0:04:38]} 42. Nge5 {[%emt 0:00:56]} Bxe5 {[%emt 0:00:18]} 43. Nxe5 {[%emt 0:00:15]} Nxe5 {[%emt 0:00:05]} 44. dxe5 {[%emt 0:00:04]} Rc7 {[%emt 0:00:28]} 45. Rg4 {[%emt 0:05:29]} Kh7 {[%emt 0:00:53]} 46. Rcg1 {[%emt 0:01:36]} Re7 {[%emt 0:01:20]} 47. Rxg5 {[%emt 0:00:43]} d4 {[%emt 0:00:05]} 48. h6 {[%emt 0:02:22]} d3 {[%emt 0:01:35]} 49. Rg7+ {[%emt 0:01:19]} Kxh6 {[%emt 0:00:26]} 50. R7g4 {[%emt 0:01:30]} Rxe5 {[%emt 0:00:06]} 51. Rh4+ {[%emt 0:00:33]} Rh5 {[%emt 0:00:02]} 52. Rxh5+ {[%emt 0:00:18]} Kxh5 {[%emt 0:00:02]} 53. Rd1 {[%emt 0:00:12]} f5 {[%emt 0:03:24]} 54. Kg2 {[%emt 0:00:14]} Rg8+ {[%emt 0:01:09]} 55. Kf3 {[%emt 0:00:33]} Rg4 {[%emt 0:00:17]} 56. Rxd3 {[%emt 0:01:31]} Rxb4 {[%emt 0:00:02]} 57. Rc3 {[%emt 0:00:30]} Ra4 {[%emt 0:00:04]} 58. Rc5 {[%emt 0:00:22]} Kg5 {[%emt 0:00:43]} 59. e4 {[%emt 0:00:37]} Ra3+ {[%emt 0:01:46]} 60. Kg2 {[%emt 0:00:11]} Rxa5 {[%emt 0:00:27]} 61. Rxf5+ {[%emt 0:00:18]} Kg4 {[%emt 0:00:03]} 62. h3+ {[%emt 0:00:22]} Kh4 {[%emt 0:00:05]} 63. Rc5 {[%emt 0:00:22]} Ra4 {[%emt 0:00:01]} 64. Rxc6 {[%emt 0:00:50]} Rxe4 {[%emt 0:00:34]} 65. Rxa6 {[%emt 0:00:09]} Rb4 {[%emt 0:00:09]} 66. Rb6 {[%emt 0:00:43]} Rb3 {[%emt 0:00:06]} 67. Rb8 {[%emt 0:00:25]} Kg5 {[%emt 0:00:29]} 68. Rg8+ {[%emt 0:00:52]} Kh5 {[%emt 0:00:45]} 69. f3 {[%emt 0:00:50]} Rb2+ {[%emt 0:00:09]} 70. Kg3 {[%emt 0:00:02]} Rb4 {[%emt 0:00:31]} 71. Rh8+ {[%emt 0:00:18]} Kg5 {[%emt 0:00:20]} 72. h4+ {[%emt 0:00:11]} Kg6 {[%emt 0:00:05]} 73. f4 {[%emt 0:00:57]} Rb1 {[%emt 0:00:06]} 74. h5+ {[%emt 0:00:23]} Kg7 {[%emt 0:01:07]} 75. Rb8 {[%emt 0:00:25]} b4 {[%emt 0:00:08]} 76. Kg4 {[%emt 0:00:17]} b3 {[%emt 0:00:04]} 77. Kg5 {[%emt 0:00:43]} Rg1+ {[%emt 0:00:41]} 78. Kf5 {[%emt 0:00:10]} Rb1 {[%emt 0:02:43]} 79. Rb6 {[%emt 0:01:10]} b2 {[%emt 0:00:10]} 80. Rb8 {[%emt 0:00:44]} Kh6 {[%emt 0:00:55]} 81. Rb7 {[%emt 0:00:12]} Ra1 {[%emt 0:00:56]} 82. Rxb2 {[%emt 0:00:18]} Ra5+ {[%emt 0:00:06]} 83. Kg4 {[%emt 0:00:08]} Ra6 {[%emt 0:00:21]} 84. Rb4 {[%emt 0:00:28]} Ra1 {[%emt 0:00:26]} 85. Rb6+ {[%emt 0:00:09]} Kg7 {[%emt 0:00:59]} 86. Rg6+ {[%emt 0:01:05]} Kf7 {[%emt 0:01:13]} 87. Kg5 {[%emt 0:01:06]} Rg1+ {[%emt 0:00:26]} 88. Kf5 {[%emt 0:00:08]} Rh1 {[%emt 0:00:15]} 89. Rf6+ {[%emt 0:00:39]} Kg7 {[%emt 0:00:06]} 90. h6+ {[%emt 0:00:33]} Kh7 {[%emt 0:00:01]} 91. Ke6 {[%emt 0:00:37]} Ra1 {[%emt 0:00:10]} 92. f5 {[%emt 0:00:20]} Ra6+ {[%emt 0:00:08]} 93. Ke5 {[%emt 0:00:09]} Ra5+ {[%emt 0:00:48]} 94. Kf4 {[%emt 0:00:05]} Ra1 {[%emt 0:00:05]} 95. Rg6 {[%emt 0:00:10]} Rf1+ {[%emt 0:00:27]} 96. Kg5 {[%emt 0:00:23]} Rg1+ {[%emt 0:00:07]} 97. Kf6 {[%emt 0:00:04]} Ra1 {[%emt 0:00:09]} 98. Ke5 {[%emt 0:01:10]} Ra5+ {[%emt 0:00:32]} 99. Kf4 {[%emt 0:00:05]} Ra1 {[%emt 0:00:40]} 100. Re6 {[%emt 0:00:06]} Rf1+ {[%emt 0:00:13]} 101. Ke5 {[%emt 0:00:27]} Re1+ {[%emt 0:00:08]} 102. Kd6 {[%emt 0:00:32]} Rf1 {[%emt 0:00:13]} 103. Ke5 {[%emt 0:02:30]} Re1+ {[%emt 0:00:12]} 104. Kf6 {[%emt 0:00:07]} Rf1 {[%emt 0:00:06]} 105. Re2 {[%emt 0:00:41]} Ra1 {[%emt 0:00:44]} 106. Kf7 {[%emt 0:01:40]} Kxh6 {[%emt 0:00:34]} 107. f6 {[%emt 0:00:14]} Ra7+ {[%emt 0:00:15]} 108. Re7 {[%emt 0:00:01]} Ra6 {[%emt 0:01:02]} 109. Re6 {[%emt 0:00:16]} Ra8 {[%emt 0:01:15]} 110. Re8 {[%emt 0:01:18]} Ra7+ {[%emt 0:00:09]} 111. Ke6 {[%emt 0:00:49]} Kg6 {[%emt 0:01:17]} 112. Rg8+ {[%emt 0:00:30]} Kh7 {[%emt 0:00:30]} 113. f7 {[%emt 0:00:30]} 1-0

[Event "SixDays Budapest IM-B 09-2024"]
[Site "Budapest"]
[Date "2024.09.28"]
[Round "7.4"]
[White "Goldbeck, Lars"]
[Black "Nissinen, Niilo Man"]
[Result "1-0"]
[ECO "A46"]
[WhiteElo "2359"]
[BlackElo "2159"]
[Annotator "ChessBase"]
[PlyCount "108"]
[EventDate "2024.09.24"]
[EventType "tourn"]
[EventCountry "HUN"]
[SourceTitle "playchess.com"]
[Source "ChessBase"]
[SourceQuality "1"]
[TimeControl "5400+30"]

1. d4 {[%emt 0:00:01]} Nf6 {[%emt 0:02:40]} 2. Nf3 {[%emt 0:00:07]} d5 {[%emt 0:00:21]} 3. c4 {[%emt 0:00:04]} e6 {[%emt 0:00:10]} 4. e3 {[%emt 0:00:04]} Be7 {[%emt 0:05:55]} 5. b3 {[%emt 0:00:20]} O-O {[%emt 0:00:30]} 6. Bd3 {[%emt 0:00:05]} b6 {[%emt 0:01:29]} 7. O-O {[%emt 0:00:20]} Bb7 {[%emt 0:02:03]} 8. cxd5 {[%emt 0:00:41]} exd5 {[%emt 0:00:52]} 9. Ba3 {[%emt 0:00:06]} c5 {[%emt 0:04:05]} 10. Nc3 {[%emt 0:02:40]} Nbd7 {[%emt 0:01:49]} 11. Ne2 {[%emt 0:01:11]} Bd6 {[%emt 0:04:28]} 12. Ng3 {[%emt 0:06:59]} Rc8 {[%emt 0:03:08]} 13. Qe2 {[%emt 0:05:38]} Re8 {[%emt 0:02:15]} 14. Bb2 {[%emt 0:04:41]} Ne4 {[%emt 0:03:22]} 15. Rad1 {[%emt 0:15:03]} Ndf6 {[%emt 0:02:27]} 16. dxc5 {[%emt 0:01:48]} bxc5 {[%emt 0:11:01]} 17. Nf5 {[%emt 0:05:34]} Bf8 {[%emt 0:04:50]} 18. Ba6 {[%emt 0:02:42]} Qb6 {[%emt 0:03:58]} 19. Bxb7 {[%emt 0:00:25]} Qxb7 {[%emt 0:00:06]} 20. Nd2 {[%emt 0:13:40]} c4 {[%emt 0:19:22]} 21. Nxe4 {[%emt 0:17:49]} Nxe4 {[%emt 0:00:29]} 22. Bd4 {[%emt 0:01:18]} g6 {[%emt 0:05:58]} 23. Ng3 {[%emt 0:00:51]} Bg7 {[%emt 0:06:30]} 24. Nxe4 {[%emt 0:03:01]} Rxe4 {[%emt 0:00:12]} 25. Bxg7 {[%emt 0:03:13]} Kxg7 {[%emt 0:00:07]} 26. Qd2 {[%emt 0:02:37]} cxb3 {[%emt 0:04:41]} 27. Qb2+ {[%emt 0:00:59]} Kg8 {[%emt 0:00:26]} 28. axb3 {[%emt 0:03:29]} Rb4 {[%emt 0:00:44]} 29. Rd3 {[%emt 0:01:32]} Rb8 {[%emt 0:02:01]} 30. Qe5 {[%emt 0:01:12]} Rd8 {[%emt 0:02:59]} 31. Qf6 {[%emt 0:02:34]} Rc8 {[%emt 0:04:33]} 32. Qd6 {[%emt 0:02:26]} Rxb3 {[%emt 0:00:16]} 33. Rxd5 {[%emt 0:00:32]} Qc7 {[%emt 0:01:27]} 34. Qf6 {[%emt 0:00:46]} Qc4 {[%emt 0:00:21]} 35. Rd4 {[%emt 0:00:34]} Qc2 {[%emt 0:01:22]} 36. Rd8+ {[%emt 0:00:35]} Rxd8 {[%emt 0:00:01]} 37. Qxd8+ {[%emt 0:00:07]} Kg7 {[%emt 0:00:01]} 38. Qd4+ {[%emt 0:00:07]} Kg8 {[%emt 0:00:25]} 39. Qxa7 {[%emt 0:00:06]} Rb1 {[%emt 0:00:51]} 40. Qa8+ {[%emt 0:00:47]} Kg7 {[%emt 0:00:05]} 41. g3 {[%emt 0:00:15]} Rb2 {[%emt 0:01:17]} 42. Qd5 {[%emt 0:00:27]} Qc3 {[%emt 0:01:16]} 43. Rd1 {[%emt 0:02:11]} Qf6 {[%emt 0:00:22]} 44. Rd2 {[%emt 0:00:39]} Rb1+ {[%emt 0:00:40]} 45. Kg2 {[%emt 0:00:01]} Rb6 {[%emt 0:00:14]} 46. Rd4 {[%emt 0:00:48]} Qc6 {[%emt 0:00:50]} 47. Qxc6 {[%emt 0:00:24]} Rxc6 {[%emt 0:00:01]} 48. g4 {[%emt 0:00:09]} Rc5 {[%emt 0:00:32]} 49. h4 {[%emt 0:00:48]} h6 {[%emt 0:00:40]} 50. Kf3 {[%emt 0:00:45]} Kf6 {[%emt 0:00:20]} 51. Rd6+ {[%emt 0:00:10]} Ke7 {[%emt 0:00:07]} 52. Ra6 {[%emt 0:00:11]} h5 {[%emt 0:00:25]} 53. g5 {[%emt 0:00:49]} Rc1 {[%emt 0:01:20]} 54. Kf4 {[%emt 0:02:09]} Rc5 1-0

[Event "SixDays Budapest IM-B 09-2024"]
[Site "Budapest"]
[Date "2024.09.28"]
[Round "7.5"]
[White "Skytte, Rasmus"]
[Black "Polyik, Peter"]
[Result "1/2-1/2"]
[ECO "A06"]
[WhiteElo "2348"]
[BlackElo "2304"]
[Annotator "ChessBase"]
[PlyCount "110"]
[EventDate "2024.09.24"]
[EventType "tourn"]
[EventCountry "HUN"]
[SourceTitle "playchess.com"]
[Source "ChessBase"]
[SourceQuality "1"]
[TimeControl "5400+30"]

1. Nf3 {[%emt 0:05:26]} d5 {[%emt 0:00:06]} 2. g3 {[%emt 0:00:20]} g6 {[%emt 0:00:36]} 3. Bg2 {[%emt 0:04:55]} Bg7 {[%emt 0:00:07]} 4. O-O {[%emt 0:00:37]} e5 {[%emt 0:00:11]} 5. d3 {[%emt 0:01:11]} Nc6 {[%emt 0:00:16]} 6. Nc3 {[%emt 0:02:25]} d4 {[%emt 0:05:24]} 7. Ne4 {[%emt 0:05:17]} Nge7 {[%emt 0:04:19]} 8. c3 {[%emt 0:04:12]} h6 {[%emt 0:03:32]} 9. cxd4 {[%emt 0:05:33]} exd4 {[%emt 0:01:47]} 10. a3 {[%emt 0:02:32]} a5 {[%emt 0:15:57]} 11. b3 {[%emt 0:07:22]} O-O {[%emt 0:01:42]} 12. Bb2 {[%emt 0:00:37]} b6 {[%emt 0:17:12]} 13. Rc1 {[%emt 0:03:07]} Be6 {[%emt 0:00:45]} 14. Qc2 {[%emt 0:01:30]} Rc8 {[%emt 0:01:27]} 15. Rfe1 {[%emt 0:04:06]} Qd5 {[%emt 0:07:23]} 16. Ned2 {[%emt 0:04:06]} Qd7 {[%emt 0:00:57]} 17. Ne4 {[%emt 0:04:17]} Qd5 {[%emt 0:11:25]} 18. Ned2 {[%emt 0:00:31]} Qd7 {[%emt 0:00:03]} 19. Ne4 {[%emt 0:00:10]} Na7 {[%emt 0:04:33]} 20. b4 {[%emt 0:01:45]} axb4 {[%emt 0:03:03]} 21. axb4 {[%emt 0:00:06]} Nb5 {[%emt 0:00:27]} 22. e3 {[%emt 0:07:43]} f5 {[%emt 0:00:59]} 23. Ned2 {[%emt 0:01:59]} Nd5 {[%emt 0:02:17]} 24. Bxd4 {[%emt 0:03:03]} Nxb4 {[%emt 0:04:54]} 25. Qb1 {[%emt 0:00:20]} Nxd4 {[%emt 0:06:59]} 26. Nxd4 {[%emt 0:02:21]} c5 {[%emt 0:00:55]} 27. Nxe6 {[%emt 0:01:02]} Qxe6 {[%emt 0:00:03]} 28. d4 {[%emt 0:00:51]} Kh7 {[%emt 0:02:24]} 29. Nc4 {[%emt 0:03:33]} Rfd8 {[%emt 0:01:59]} 30. d5 {[%emt 0:09:30]} Nxd5 {[%emt 0:00:39]} 31. Bxd5 {[%emt 0:00:06]} Rxd5 {[%emt 0:00:03]} 32. Qxb6 {[%emt 0:00:18]} Rc6 {[%emt 0:01:36]} 33. Qb5 {[%emt 0:00:27]} Rc7 {[%emt 0:00:47]} 34. h4 {[%emt 0:02:40]} h5 {[%emt 0:00:40]} 35. Rb1 {[%emt 0:02:54]} Ra7 {[%emt 0:01:09]} 36. Red1 {[%emt 0:01:45]} Rxd1+ {[%emt 0:00:32]} 37. Rxd1 {[%emt 0:00:06]} Qe7 {[%emt 0:00:13]} 38. Qc6 {[%emt 0:01:46]} Ra1 {[%emt 0:01:07]} 39. Rxa1 {[%emt 0:00:13]} Bxa1 {[%emt 0:00:02]} 40. Nb6 {[%emt 0:02:11]} Be5 {[%emt 0:00:34]} 41. Nd5 {[%emt 0:01:09]} Qd6 {[%emt 0:00:06]} 42. Qb7+ {[%emt 0:01:36]} Kh6 {[%emt 0:00:11]} 43. Qb3 {[%emt 0:02:25]} Bxg3 {[%emt 0:00:40]} 44. fxg3 {[%emt 0:00:15]} Qxg3+ {[%emt 0:00:02]} 45. Kf1 {[%emt 0:00:08]} Qxh4 {[%emt 0:00:57]} 46. Nf4 {[%emt 0:00:29]} Qg3 {[%emt 0:00:58]} 47. Ke2 {[%emt 0:00:56]} Qh2+ {[%emt 0:00:50]} 48. Kd3 {[%emt 0:00:27]} Qh1 {[%emt 0:00:19]} 49. Qg8 {[%emt 0:02:03]} Qb1+ {[%emt 0:00:33]} 50. Ke2 {[%emt 0:00:22]} Qc2+ {[%emt 0:00:13]} 51. Kf3 {[%emt 0:01:07]} Qd1+ {[%emt 0:00:09]} 52. Kf2 {[%emt 0:00:18]} Qd2+ {[%emt 0:00:16]} 53. Kf3 {[%emt 0:01:01]} Qd1+ {[%emt 0:00:03]} 54. Kf2 {[%emt 0:00:13]} Qd2+ {[%emt 0:00:03]} 55. Kf3 {[%emt 0:00:20]} Qd1+ {[%emt 0:00:06]} 1/2-1/2